Cogmind - Beta 13 @@@ ROGUE MODE // 2024.04.10 @ 23:19:29 Player: Cordans Result: Self-destructed Performance ------------- Evolutions (1) 500 Regions Visited (2) 400 Robots Destroyed (23) 115 Value Destroyed (407) 407 Prototype IDs (0) 0 Alien Tech Used (0) 0 Bonus (0) 0 TOTAL SCORE: 1422 Bonus ------- None Cogmind --------- Core Integrity 280/400 Matter 115/300 Energy 100/100 System Corruption 4% Temperature Cool (0) Movement Core (600) Ox11 Location -9/Materials Parts ------- > --- POWER (1) -------- (None) > --- PROPULSION (2) --- (None) > --- UTILITY (3) ------ Medium Storage Unit Large Storage Unit Hardened Light Armor Plating > --- WEAPON (3) ------- (None) > --- INVENTORY (15) --- Cryofiber Web Cooling System Small Storage Unit Medium Storage Unit Structural Scanner Improved Light Armor Plating Improved Light Armor Plating Improved Light Armor Plating Advanced Beam Cannon Advanced Beam Cannon Autogun Improved Assault Rifle Faulty Improved Assault Rifle Improved Assault Rifle Peak State ------------ > --- POWER ------------ Ion Engine > --- PROPULSION ------- Light Treads Light Treads > --- UTILITY ---------- Medium Storage Unit Large Storage Unit Hardened Light Armor Plating > --- WEAPON ----------- Improved Light Cannon Grenade Launcher Rocket Launcher > --- INVENTORY -------- Cryofiber Web Cooling System Small Storage Unit Medium Storage Unit Structural Scanner Improved Light Armor Plating Improved Light Armor Plating Improved Light Armor Plating Advanced Beam Cannon Autogun Improved Assault Rifle Improved Assault Rifle Improved Assault Rifle [Rating: 15] Favorites ----------- Power Ion Engine Engine Ion Engine Propulsion Light Treads Treads Light Treads Utility Medium Storage Unit Storage Medium Storage Unit Protection Hardened Light Armor Plating Weapon Rocket Launcher Energy Gun EM Shotgun Ballistic Gun Light Assault Rifle Ballistic Cannon Improved Light Cannon Launcher Rocket Launcher Build | -11 -10 -9 ------- Run | Yrd Mat Mat Slots Evolved 2 | . . 2 Power . | . . . Propulsion . | . . . Utility 1 | . . 1 Weapon 1 | . . 1 Parts Attached 17 | 6 5 6 Power 3 | 1 1 1 Engine 3 | 1 1 1 Core . | . . . Reactor . | . . . Propulsion 2 | 2 . . Treads 2 | 2 . . Leg . | . . . Wheel . | . . . Hover . | . . . Flight . | . . . Utility 4 | 1 1 2 Device . | . . . Storage 3 | 1 1 1 Processor . | . . . Hackware . | . . . Protection 1 | . . 1 Artifact . | . . . Weapon 8 | 2 3 3 Energy Gun 1 | . 1 . Energy Cannon . | . . . Ballistic Gun 2 | 2 . . Ballistic Cannon 1 | . . 1 Launcher 4 | . 2 2 Special Weapon . | . . . Impact Weapon . | . . . Slashing Weapon . | . . . Piercing Weapon . | . . . Special Melee Weapon . | . . . Unidentified Prototypes . | . . . Parts Lost 6 | . . 6 Power 1 | . . 1 Propulsion 2 | . . 2 Utility . | . . . Weapon 3 | . . 3 Highest Loss Streak 3 | . . 3 To Critical Strikes . | . . . Average Slot Usage (%) 96 | . 98 93 Engine 11 | . 13 9 Treads 25 | . 28 20 Storage 25 | . 27 22 Protection 3 | . . 10 Energy Gun 6 | . 8 2 Ballistic Gun 6 | . 10 . Ballistic Cannon 3 | . . 8 Launcher 12 | . 8 19 Naked Turns . | . . . Heaviest Build 51 | 13 27 51 Greatest Support 40 | 40 40 40 Greatest Overweight (x) 2 | 1 . 2 Average Overweight (x) . | . . . Largest Inventory Capacity 15 | 8 10 15 Average Capacity 10 | 7 9 12 Most Carried 14 | 3 10 14 Average Carried 8 | . 7 10 Final Capacity 15 | 8 10 15 Final Carried 14 | 1 8 14 Class Distribution -------------------- 69% | Mutant 19% | Bomber 10% | Tank Dominant Class ---------------- Mutant | -10/Materials Bomber | -9/Materials Resources | -11 -10 -9 ----------- Run | Yrd Mat Mat Matter Collected 507 | 202 66 239 Remotely . | . . . Salvage Created 593 | . 106 487 Parts 48 | . 3 45 Haulers Intercepted 1 | . . 1 Recyclers Shooed . | . . . Parts Field Recycled . | . . . Retrieved Matter . | . . . Parts Self-Destructed . | . . . Prevented . | . . . Kills | -11 -10 -9 ------- Run | Yrd Mat Mat Combat Hostiles Destroyed 9 | . 3 6 Guns 1 | . 1 . Cannons 1 | . . 1 AOE 7 | . 2 5 Classes Destroyed 6 | . 1 5 Worker 1 | . . 1 Builder 7 | . . 7 Hauler 1 | . . 1 Recycler 4 | . . 4 Watcher 1 | . . 1 Grunt 9 | . 3 6 Best Kill Streak 10 | . 2 10 Combat Bots Only 2 | . 2 2 Max Kills in Single Turn 4 | . 1 4 Gunslinging . | . . . Exploded 1 | . 1 1 Melee . | . . . Uniques/NPCs Destroyed . | . . . Combat | -11 -10 -9 -------- Run | Yrd Mat Mat Hostile Shots Fired 77 | . 35 42 Missed 18 | . 10 8 Damage Taken 1145 | . 341 804 Core 175 | . 55 120 Absorbed by Shields . | . . . Core Remaining (%) 89 | 100 78 . Volleys Fired 23 | . 10 13 Largest 3 | . 2 3 Hottest 102 | . 78 102 Shots Fired 54 | . 19 35 Gun 14 | . 14 . Cannon 13 | . . 13 Launcher 27 | . 5 22 Special . | . . . Kinetic 26 | . 13 13 Thermal . | . . . Explosive 27 | . 5 22 Electromagnetic 1 | . 1 . Robot Hit Streak 6 | . 3 6 Robot Miss Streak 4 | . 4 4 Penetration Max . | . . . Secondary Targets . | . . . Shots Hit Robots 13 | . 6 7 Core Hits 34 | . 5 29 Critical Kills . | . . . Critical Parts Destroyed . | . . . Critical Strikes . | . . . Melee Attacks . | . . . Impact . | . . . Slashing . | . . . Piercing . | . . . Sneak Attacks . | . . . Combat Hostiles . | . . . Follow-up Attacks . | . . . Damage Inflicted 1445 | . 157 1288 Guns 67 | . 67 . Cannons 144 | . . 144 Explosions 1225 | . 90 1135 Melee . | . . . Ramming 9 | . . 9 Kinetic 211 | . 67 144 Thermal . | . . . Explosive 1225 | . 90 1135 Electromagnetic . | . . . Impact . | . . . Slashing . | . . . Piercing . | . . . Highest Corruption 4 | . . 4 Average Corruption 4 | . . 4 Corruption Purged . | . . . Corruption Blocked . | . . . Effects 2 | . . 2 Heat Flow Errors 1 | . . 1 Data Loss (major) 1 | . . 1 Overload Shots . | . . . Overflow Damage 7 | . . 7 Projectiles . | . . . Explosions 7 | . . 7 Melee . | . . . Knockbacks . | . . . Impact . | . . . Kinetic . | . . . Secondary . | . . . Self-Inflicted Damage 86 | . 26 60 Shots 4 | . 1 3 Rammed 2 | . . 2 Targets Rammed 2 | . . 2 Kicked . | . . . Crushed . | . . . Highest Temperature 266 | . 22 266 Average Temperature 53 | . 11 62 Received Heat Transfer 381 | . 177 204 Effects 1 | . . 1 Energy Bleed 1 | . . 1 Siege Activations . | . . . Robots Corrupted . | . . . Combat Hostiles . | . . . Parts Fried . | . . . Impact Corruptions . | . . . Robots Melted . | . . . Combat Hostiles . | . . . Parts Melted . | . . . Heat Transferred . | . . . Parts Sabotaged . | . . . Parts Stolen . | . . . Parts Stripped . | . . . Power Chain Reactions . | . . . Alert | -11 -10 -9 ------- Run | Yrd Mat Mat Peak Influence 348 | . 77 348 Initial 16 | . . 16 Average 58 | . 26 120 Maximum Alert Level 1 | . . 1 Low Security (%) 89 | 100 100 70 Level 1 10 | . . 30 Level 2 . | . . . Level 3 . | . . . Level 4 . | . . . Level 5 . | . . . High Security . | . . . Max Security . | . . . Squads Dispatched 3 | . 1 2 Investigation 1 | . 1 . Extermination . | . . . Reinforcement 2 | . . 2 Assault . | . . . Garrison . | . . . Intercept . | . . . Searches Triggered . | . . . Construction Impeded 1 | . . 1 Haulers Reinforced . | . . . Active Scanning Responses . | . . . Cargo Convoy Interrupts . | . . . Stealth | -11 -10 -9 --------- Run | Yrd Mat Mat Distress Signals 4 | . 1 3 Communications Jammed . | . . . Distress Signals . | . . . Times Spotted 17 | . 5 12 Peak Tracking Total 3 | . 3 3 Tactical Retreats 1 | . . 1 Traps | -11 -10 -9 ------- Run | Yrd Mat Mat Traps Triggered 1 | . 1 . Indirectly . | . . . Trap Hack Attempts . | . . . Triggered . | . . . Disarmed . | . . . Reprogrammed . | . . . Reused . | . . . Traps Extracted . | . . . Installed . | . . . Triggered . | . . . Machines | -11 -10 -9 ---------- Run | Yrd Mat Mat Machines Disabled 1 | . . 1 Max in Single Turn 1 | . . 1 Machines Repaired . | . . . Machines Dismantled . | . . . Machines Sabotaged . | . . . Overloaded Fab Kills . | . . . Hacking | -11 -10 -9 --------- Run | Yrd Mat Mat Machines Accessed 4 | . 2 2 Terminals 3 | . 1 2 Fabricators . | . . . Repair Stations 1 | . 1 . Recycling Units . | . . . Scanalyzers . | . . . Garrison Access . | . . . Total Hacks 10 | . 7 3 Successful 5 | . 2 3 Failed 5 | . 5 . Catastrophic . | . . . Database Lockouts . | . . . Manual . | . . . Terminals 6 | . 3 3 Fabricators . | . . . Repair Stations 4 | . 4 . Recycling Units . | . . . Scanalyzers . | . . . Garrison Access . | . . . Terminal Hacks 3 | . . 3 Record 2 | . . 2 Locate Traps 1 | . . 1 Fabricator Hacks . | . . . Repair Station Hacks 2 | . 2 . Scan Component 2 | . 2 . Recycling Unit Hacks . | . . . Scanalyzer . | . . . Garrison Access Hacks . | . . . Unauthorized Hacks . | . . . Terminals . | . . . Fabricators . | . . . Repair Stations . | . . . Recycling Units . | . . . Scanalyzers . | . . . Garrison Access . | . . . Data Cores Recovered . | . . . Used . | . . . Hacking Detections 2 | . 1 1 Full Trace Events 1 | . 1 . Feedback Events . | . . . Feedback Blocked . | . . . Robot Schematics Acquired . | . . . Robots Built . | . . . Authchips . | . . . Time . | . . . Total Robot Build Rating . | . . . Part Schematics Acquired . | . . . Parts Built . | . . . Authchips . | . . . Time . | . . . Total Part Build Rating . | . . . Parts Repaired . | . . . Time . | . . . Parts Recycled . | . . . Recycled Matter . | . . . Retrieved Matter . | . . . Retrieved Components . | . . . Parts Scanalyzed . | . . . Part Schematics Acquired . | . . . Parts Damaged . | . . . Bothacking | -11 -10 -9 ------------ Run | Yrd Mat Mat Used RIF Installer . | . . . Robots Hacked . | . . . Non-combat . | . . . Combat . | . . . Robot Hacks Applied . | . . . Relay Couplers Released . | . . . Fabnet Peak Effective % . | . . . Robots Rewired . | . . . Allies Hacked . | . . . Hacks Repelled . | . . . Allies | -11 -10 -9 -------- Run | Yrd Mat Mat Total Allies . | . . . Largest Group . | . . . Highest-Rated Group . | . . . Highest-Rated Ally . | . . . Total Orders . | . . . Ally Attacks . | . . . Total Damage . | . . . Kills . | . . . Allies Corrupted . | . . . Allies Melted . | . . . Intel | -11 -10 -9 ------- Run | Yrd Mat Mat Robot Analysis Total . | . . . Derelict Logs Recovered . | . . . Drone Launches . | . . . Drone Recoveries . | . . . Exploration | -11 -10 -9 ------------- Run | Yrd Mat Mat Turns Passed 1164 | 87 657 420 Spaces Moved 608 | 50 383 175 Core 5 | 5 . . Treads 603 | 45 383 175 Legs . | . . . Wheels . | . . . Hover . | . . . Flight . | . . . Fastest Speed 50 | 50 160 160 Average Speed 167 | 151 160 187 Slowest Speed 320 | 160 160 320 Overloaded Moves . | . . . Propulsion Burnouts . | . . . Robots Hopped . | . . . Cave-ins Triggered 1 | . . 1 Exploration Rate (%) 18 | 4 33 18 Regions Visited 2 Branch Regions . Pre-discovered Areas . | . . . Known Exits Taken . | . . . Unknown Exits Taken 2 | 1 1 . Scrap Searched . | . . . Spaces Dug 9 | . 9 . Terrain Destroyed 155 | . 29 126 Melee . | . . . Projectile 2 | . . 2 AOE 153 | . 29 124 Terrain Rammed . | . . . Walls Destroyed . | . . . Machines Disabled . | . . . Actions | -11 -10 -9 --------- Run | Yrd Mat Mat Total 713 | 62 413 238 Wait 20 | . . 20 Move 606 | 49 382 175 Hop . | . . . Pick Up 32 | 7 12 13 Fast Attach . | . . . Attach 17 | 6 5 6 Detach 6 | . 2 4 Swap . | . . . Drop 7 | . 2 5 Fire 23 | . 10 13 Melee . | . . . Ram . | . . . Kick . | . . . Crush 2 | . . 2 Escape Stasis . | . . . Rewire . | . . . Trap . | . . . Miscellaneous . | . . . Route ------- -11/Scrapyard -10/Materials -9/Materials History --------- Turn | Location | Event 6 | -11/Scrapyard | Discovered new exit (range 15) 88 | -11/Scrapyard | Entered Materials 318 | -10/Materials | Build established: Mutant 474 | -10/Materials | Discovered new exit (range 15) 745 | -10/Materials | Entered another Materials area 745 | -9/Materials | Evolved 2 slots: Utility x1, Weapon x1 1114 | -9/Materials | Crushed by falling debris 1148 | -9/Materials | Lost 3 parts (1p1n1w) 1165 | -9/Materials | Self-destructed Last Messages --------------- 01116_ The unstable cave ceiling collapses. 01117_ Grenade Launcher destroyed. 01118_ R-06 Scavenger collects Aluminum Leg. 01120_ The unstable cave ceiling collapses. 01121_ R-06 Scavenger collects Lgt. Treads. 01128_ Acquired 14 matter. 01129_ U-05 Engineer builds a Wall. 01131_ R-06 Scavenger collects Sml. Laser. 01134_ System corrupted: Substantial component data lost. 01135_ U-05 Engineer destroyed. 01138_ Destroyed Aluminum Leg. 01141_ G-34 Mercenary destroyed. 01144_ Acquired 3 matter. 01144_ R-06 Scavenger collects Sml. Storage Unit. 01149_ System corrupted: Heat flow error (+289). 01150_ Overheating: Energy bleed (-19). 01153_ Slammed into G-34 Mercenary. 01158_ Imp. Light Cannon destroyed. 01163_ Rocket Launcher destroyed. 01164_ Lgt. Treads destroyed. Map ----- +----------------------------------------------------+ | ?????????????????????????????????????????????????? | | ?????????????????????????????????????????????????? | | ?????????????????????????????????????????????????? | | ?????????????????????????????????????????????????? | | ?????????????????????????????????????????????????? | | ?????????????????????????????????????????????????? | | ?????????????????????????????????????????????????? | | ?????????????????????????????????????????????????? | | ?????????????????????????????????????????????????? | | ?????????????????????????????????????????????????? | | ?????????????????????????????????????????????????? | | ?????????????????????????????????????????????????? | | ?????????????????????????????#???????????????????? | | ?????????????????????????### #???????????????????? | | ????????????????????????? # #???????????????????? | | ????????????????????????? # #???????????????????? | | ????????????????????????? # ###?????????????????? | | ????????????????????????# ?????????????????? | | ????????????????????????# ??????????????????? | | ????????????????????????# ???????????????????? | | ???????????????????????? ????????????????????? | | ????????????????????????# ????????????????????? | | ????????????????????????# g ?????????????????????? | | ????????????????????????# ??????????????????????? | | ???????????##########???#l#??????????????????????? | | ???????????# #####@#??????????????????????? | | ???#???????# ## g #??????????????????????? | | ???? ??????# ## ####??????????????????????? | | ????# ?????# ## #?????????????????????????? | | ????# ????## ## ##????????????????????????? | | ????+ ???# # #????????????????????????? | | ????# ???# #######?????????????????? | | ????# ### #?????????????????? | | ????# # = ] ##????????????????? | | ????# ## # # #????????????????? | | ???## ! #????????????????? | | ???## # ##????????????????? | | ???## ! ##?????????????????? | | ????# =% = #+ [ ##??????????????????? | | ????# # = [ ##???????????????????? | | ? # "" ## [ ! #????????????????????? | | # """ ###% ##????????????????????? | | # """ #?#% #?????????????????????? | | ##+####### # #?#=#####?????????????????????? | | ?????????# # """ #?#|#?????????????????????????? | | ?????????# # """ #?# #?????????????????????????? | | ????????? # """ #?# #?????????????????????????? | | ????????## # ? #?# #?????????????????????????? | | ?????????# # ?? #?# #?????????????????????????? | | ?????????# # ?? ??# #?????????????????????????? | +----------------------------------------------------+ Best States ------------- Heat Dissipation 28 Energy Generation 10 Energy Capacity 250 Matter Stores 290 Matter Capacity 300 Sight Range 16 Terrain Scan Density 10 Armor Coverage 150 Evasion (%) 40 Recoil Reduction 2 Item Schematics ----------------- None Robot Schematics ------------------ None Fabricated ------------ Nothing Alien Tech Used ----------------- None Achievements -------------- Loot Pinata Unlikely Earthworm Challenges ------------ None Game ------ Seed SuperchargedQuantumDrive Manual? 0 Play Time 00:15:57 Cumulative 1.5 hours Start 2024.04.10 @ 23:05:46 End 2024.04.10 @ 23:19:29 Sessions 1 Manual Loads 0 Difficulty Rogue Special Mode None Game No. 4 Rogue 4 Adventurer 0 Explorer 0 Win Type - Total 0 Types 0/0/0/0/0/0/0/0/0 Lore% 1 Gallery% 3 Achievement% 3 Wizard Run 0 Options --------- Layout 0 ASCII 0 Keyboard 1 Movement Numpad Keybinds 0 Fullscreen 2 Font 18/SmallcapsGlow Map View 38x25 Zoom Use 98% Tactical HUD 1 Map Filters NONE Filters NONE Steam 1 RUN: 8547ccf9-2ad7-42ad-be0b-766d4a170ac1